[Event "DVM U20w 2021"]
[Site "Kiel"]
[Date "2022.07.23"]
[Round "1"]
[White "Grining, Maria"]
[Black "Browning, Rebecca"]
[Result "1-0"]
[ECO "D46"]
[WhiteElo "1750"]
[BlackElo "1938"]
[Annotator "TA"]
[PlyCount "79"]
[EventDate "2022.07.23"]
[EventType "team-tourn"]
[EventRounds "7"]
[EventCountry "GER"]
[SourceTitle "playchess.com"]
[Source "ChessBase"]
[SourceQuality "1"]
[TimeControl "40/5400+30:1800+30"]

{[%evp 23,79,47,88,78,87,62,84,85,78,59,72,58,60,31,35,34,31,36,250,0,0,-10,-4,-155,-121,-131,135,143,144,151,391,382,786,783,775,762,700,679,689,687,687,684,676,660,812,812,860,778,29989,29990,29995,0,0,0,29995,29996,29997,29998]} 1. d4 {[%emt 0:00:02]} d5 {[%emt 0:00:07]} 2. Nf3 {[%emt 0:00:05]} Nf6 {[%emt 0:00:05]} 3. e3 {[%emt 0:00:03]} c6 {[%emt 0:00:41]} 4. c4 {[%emt 0:00:05]} e6 {[%emt 0:00:31]} 5. Nbd2 {[%emt 0:03:48]} Bd6 {[%emt 0:01:26]} 6. Bd3 {[%emt 0:01:29]} Nbd7 {[%emt 0:01:32]} 7. e4 {[%emt 0:16:04]} dxe4 {[%emt 0:01:43]} 8. Nxe4 {[%emt 0:01:20]} Nxe4 {[%emt 0:00:10]} 9. Bxe4 {[%emt 0:00:06]} Nf6 {[%emt 0:00:05]} 10. Bc2 {[%emt 0:01:40]} h6 {[%emt 0:04:14]} 11. O-O {[%emt 0:01:39]} Qc7 {[%emt 0:15:50]} 12. Re1 {[%emt 0:08:14]} O-O {[%emt 0:08:37]} 13. c5 {[%emt 0:07:41] D46: Semi-Slav: 5 e3 Nbd7 6 Bd3, Black avoids the Meran.} Bf4 {[%emt 0:02:17]} 14. Qd3 {[%emt 0:05:33]} Rd8 {[%emt 0:04:38]} 15. Bxf4 {[%emt 0:06:06] White is better.} Qxf4 {[%emt 0:01:22] [#]} 16. g3 $146 {[%emt 0:01:46]} ({Predecessor:} 16. Re5 g6 17. g3 Qg4 18. Kg2 Nd5 19. Qd2 g5 20. h3 Qh5 21. g4 Nf4+ 22. Qxf4 {1-0 (22) Campora,D (2453)-Dominguez Fernandez,A (1992) Mondariz 2015}) 16... Qc7 {[%emt 0:00:54]} 17. Ne5 {[%emt 0:03:33]} b6 {[%emt 0:03:17]} 18. b4 {[%emt 0:04:55]} a5 {[%emt 0:03:54]} 19. cxb6 {[%emt 0:06:25]} Qxb6 {[%emt 0:00:15]} 20. bxa5 {[%emt 0:00:16]} Rxa5 {[%emt 0:00:55]} ({Black should play} 20... Qxd4 $14 21. Qa3 (21. Qxd4 Rxd4 22. Red1 c5 $11) 21... Qd6 22. Qxd6 Rxd6) 21. Rab1 $2 {[%emt 0:02:21]} (21. Nc4 $18 Qc7 22. Nxa5 Qxa5 23. Re5) 21... Qc7 $11 {[%emt 0:04:32]} 22. Qc4 {[%emt 0:03:25]} c5 {[%emt 0:00:55] Strongly threatening ...Ba6.} 23. Rbd1 $2 {[%emt 0:02:17]} (23. Rbc1 $11) 23... Ba6 $17 {[%emt 0:00:16]} 24. Qc3 {[%emt 0:00:30][%cal Oe5c6] And now Nc6! would win.} c4 $2 {[%emt 0:00:19][%mdl 8192] [#]} ({Much worse is} 24... Rxa2 $6 25. dxc5 Nd5 26. Qd2 $11 (26. Qb3 Ra5 $11)) (24... Nd5 $17 {stays on course.} 25. Qf3 cxd4) 25. Nc6 $1 $36 {[%emt 0:01:20][%mdl 2560] White is really pushing. White is more active.} Rxa2 {[%emt 0:02:38]} 26. Nxd8 {[%emt 0:00:36]} Nd5 $2 {[%emt 0:00:10]} (26... Qxd8 $16 27. Ra1 Nd5) 27. Qd2 $18 {[%emt 0:00:46]} ({Resist} 27. Nxe6 fxe6 28. Qd2 Qc6 29. Bh7+ Kxh7 30. Qxa2 Nb4 31. Qb1+ Nd3 $18) 27... Kf8 $2 {[%emt 0:06:28] [#]} (27... Qxd8 28. Bh7+ Kxh7 29. Qxa2 Qd6 30. Qc2+ g6) 28. Nxe6+ $1 {[%emt 0:06:48]} fxe6 {[%emt 0:00:41]} 29. Rxe6 {[%emt 0:00:12]} c3 {[%emt 0:00:13] [#]} 30. Qe1 $1 {[%emt 0:00:16] White threatens Re8+ and mate.} Nf6 {[%emt 0:05:34] Against Re8+} 31. Rc1 {[%emt 0:04:23] aiming for Bg6.} Bc8 {[%emt 0:02:22]} 32. Re3 {[%emt 0:01:21]} Bh3 {[%emt 0:04:27]} 33. Rxc3 {[%emt 0:01:39]} Qb7 {[%emt 0:00:13][%csl Gh3][%cal Rb7g2]} 34. f3 {[%emt 0:01:26]} Qb6 {[%emt 0:03:28]} 35. Qe5 {[%emt 0:02:42] Bb3 is the strong threat.} Qb2 {[%emt 0:00:28]} 36. Qd6+ {[%emt 0:01:36]} Kf7 {[%emt 0:02:23]} 37. Bb3+ $2 {[%emt 0:01:50]} (37. Rc7+ {mates} Bd7 38. Rxd7+ Nxd7 39. Bg6+ Kg8 40. Rc8+ Nf8 41. Rxf8#) 37... Kg6 $11 {[%emt 0:00:15][%csl Ga2][%cal Rb2h2]} 38. Bc2+ {[%emt 0:00:14]} Kf7 $1 {[%emt 0:00:08]} 39. Rc7+ {[%emt 0:01:07]} Nd7 {[%emt 0:00:28]} 40. Bg6+ {[%emt 0:00:43] Weighted Error Value: White=0.38/Black=0.83} 1-0

[Event "DVM U20w 2021"]
[Site "Kiel"]
[Date "2022.07.23"]
[Round "1"]
[White "Rempe, Mieke"]
[Black "Peglau, Sarah"]
[Result "0-1"]
[ECO "B73"]
[WhiteElo "1646"]
[BlackElo "1782"]
[Annotator "NA RC COMBH"]
[PlyCount "62"]
[EventDate "2022.07.23"]
[EventType "team-tourn"]
[EventRounds "7"]
[EventCountry "GER"]
[SourceTitle "playchess.com"]
[Source "ChessBase"]
[SourceQuality "1"]
[TimeControl "40/5400+30:1800+30"]

1. e4 {[%emt 0:00:05]} c5 {[%emt 0:00:06]} 2. Nf3 {[%emt 0:00:08]} d6 {[%emt 0:00:17]} 3. d4 {[%emt 0:00:11]} cxd4 {[%emt 0:00:05]} 4. Nxd4 {[%emt 0:00:10]} Nf6 {[%emt 0:00:04]} 5. Nc3 {[%emt 0:00:11]} Nc6 {[%emt 0:00:32]} 6. Be2 {[%emt 0:02:41]} g6 {[%emt 0:00:23]} 7. O-O {[%emt 0:00:46]} Bg7 {[%emt 0:00:08]} 8. Be3 {[%emt 0:02:45]} O-O {[%emt 0:00:23]} 9. Qd2 {[%emt 0:01:18]} Bd7 {[%emt 0:02:00]} 10. f4 {[%emt 0:06:15]} a6 {[%emt 0:04:56]} 11. f5 {[%emt 0:07:10]} b5 {[%emt 0:02:03]} 12. fxg6 {[%emt 0:07:27]} hxg6 {[%emt 0:02:20]} 13. Nxc6 {[%emt 0:09:42]} Bxc6 {[%emt 0:00:08]} 14. Bf3 {[%emt 0:03:06]} Qc7 {[%emt 0:05:37]} 15. Nd5 {[%emt 0:05:48]} Qb7 {[%emt 0:01:38]} 16. Bh6 {[%emt 0:13:14]} Bxh6 {[%emt 0:07:11]} 17. Nxf6+ {[%emt 0:02:41]} Kg7 {[%emt 0:00:53]} 18. Nh5+ {[%emt 0:03:17]} gxh5 {[%emt 0:00:28]} 19. Qc3+ {[%emt 0:00:10]} Kg8 {[%emt 0:01:55]} 20. Bxh5 {[%emt 0:04:33]} Bxe4 {[%emt 0:02:09]} 21. Rae1 {[%emt 0:12:07]} f5 {[%emt 0:07:47]} 22. Qg3+ {[%emt 0:02:54]} Kh8 {[%emt 0:03:15]} 23. Bf3 {[%emt 0:01:03]} Rg8 {[%emt 0:12:04]} 24. Qh3 {[%emt 0:01:48]} Rg6 {[%emt 0:00:53]} 25. Bxe4 {[%emt 0:02:20]} fxe4 {[%emt 0:00:09]} 26. Re2 {[%emt 0:02:56]} Rag8 {[%emt 0:05:47]} 27. Rf7 {[%emt 0:02:17]} Qd5 {[%emt 0:03:20]} 28. Rf1 {[%emt 0:01:11]} Qe6 {[%emt 0:01:04]} 29. Qc3+ {[%emt 0:01:58]} Bg7 {[%emt 0:01:58]} 30. Qb3 {[%emt 0:01:27]} Qxb3 {[%emt 0:00:53]} 31. cxb3 {[%emt 0:00:38]} d5 {[%emt 0:00:22]} 0-1

[Event "DVM U20w 2021"]
[Site "Kiel"]
[Date "2022.07.23"]
[Round "1"]
[White "Albayrak, Berrak"]
[Black "Neumeier, Valentina"]
[Result "0-1"]
[ECO "C26"]
[WhiteElo "1592"]
[BlackElo "1392"]
[Annotator "NA RC COMBH"]
[PlyCount "88"]
[EventDate "2022.07.23"]
[EventType "team-tourn"]
[EventRounds "7"]
[EventCountry "GER"]
[SourceTitle "playchess.com"]
[Source "ChessBase"]
[SourceQuality "1"]
[TimeControl "40/5400+30:1800+30"]

1. e4 {[%emt 0:00:03]} e5 {[%emt 0:00:04]} 2. Nc3 {[%emt 0:00:06]} Nf6 {[%emt 0:00:24]} 3. g3 {[%emt 0:00:14]} Bc5 {[%emt 0:01:20]} 4. Bg2 {[%emt 0:00:36]} d6 {[%emt 0:00:29]} 5. h3 {[%emt 0:04:10]} Nc6 {[%emt 0:02:12]} 6. Nge2 {[%emt 0:03:58]} Bd7 {[%emt 0:14:21]} 7. d3 {[%emt 0:17:32]} h6 {[%emt 0:02:42]} 8. O-O {[%emt 0:13:59]} O-O {[%emt 0:04:05]} 9. Kh2 {[%emt 0:03:44]} Re8 {[%emt 0:08:37]} 10. f4 {[%emt 0:03:12]} Bb6 {[%emt 0:06:05]} 11. f5 {[%emt 0:03:10]} Ne7 {[%emt 0:06:00]} 12. g4 {[%emt 0:04:31]} c6 {[%emt 0:03:09]} 13. Qe1 {[%emt 0:07:23]} d5 {[%emt 0:01:28]} 14. Qh4 {[%emt 0:01:23]} dxe4 {[%emt 0:03:19]} 15. dxe4 {[%emt 0:02:41]} Nh7 {[%emt 0:01:48]} 16. Qg3 {[%emt 0:06:09]} a5 {[%emt 0:03:24]} 17. h4 {[%emt 0:05:56]} Kh8 {[%emt 0:10:41]} 18. Ng1 {[%emt 0:05:31]} Ng8 {[%emt 0:05:09]} 19. Nh3 {[%emt 0:00:59]} Qe7 {[%emt 0:04:49]} 20. g5 {[%emt 0:02:39]} hxg5 {[%emt 0:00:36]} 21. hxg5 {[%emt 0:02:14]} Bd8 {[%emt 0:02:51]} 22. g6 {[%emt 0:01:47]} fxg6 {[%emt 0:01:10]} 23. fxg6 {[%emt 0:00:17]} Nf8 {[%emt 0:02:03]} 24. Bg5 {[%emt 0:04:14]} Nf6 {[%emt 0:02:56]} 25. Qh4+ {[%emt 0:03:54]} Kg8 {[%emt 0:00:42]} 26. Bxf6 {[%emt 0:01:21]} gxf6 {[%emt 0:00:34]} 27. Rf3 {[%emt 0:01:18]} Qg7 {[%emt 0:00:54]} 28. Qf2 {[%emt 0:00:39]} b5 {[%emt 0:01:18]} 29. a3 {[%emt 0:00:38]} Ne6 {[%emt 0:00:53]} 30. Rd1 {[%emt 0:00:30]} Nd4 {[%emt 0:00:53]} 31. Rfd3 {[%emt 0:00:34]} Bb6 {[%emt 0:00:42]} 32. Qg3 {[%emt 0:00:24]} Rad8 {[%emt 0:00:38]} 33. R3d2 {[%emt 0:00:36]} Kf8 {[%emt 0:01:21]} 34. Ne2 {[%emt 0:00:29]} Ne6 {[%emt 0:00:48]} 35. Rf1 {[%emt 0:00:30]} Ke7 {[%emt 0:01:02]} 36. c3 {[%emt 0:00:33]} Rg8 {[%emt 0:00:29]} 37. Qd3 {[%emt 0:00:28]} Qxg6 {[%emt 0:01:52]} 38. Ng3 {[%emt 0:00:32]} Nf4 {[%emt 0:03:48]} 39. Nxf4 {[%emt 0:00:31]} exf4 {[%emt 0:00:54]} 40. Nf5+ {[%emt 0:00:32]} Bxf5 {[%emt 0:00:35]} 41. exf5 {[%emt 0:05:13]} Rxd3 {[%emt 0:00:21]} 42. Re2+ {[%emt 0:00:23]} Kd7 {[%emt 0:04:00]} 43. fxg6 {[%emt 0:09:24]} Rh8+ {[%emt 0:00:16]} 44. Bh3+ {[%emt 0:00:07] Check Result:-#1} Rhxh3+ {[%emt 0:00:17]} 0-1

[Event "DVM U20w 2021"]
[Site "Kiel"]
[Date "2022.07.23"]
[Round "1"]
[White "Rempe, Janne"]
[Black "Peglau, Mirjam"]
[Result "0-1"]
[ECO "A80"]
[WhiteElo "1497"]
[BlackElo "1876"]
[Annotator "NA RC COMBH"]
[PlyCount "96"]
[EventDate "2022.07.23"]
[EventType "team-tourn"]
[EventRounds "7"]
[EventCountry "GER"]
[SourceTitle "playchess.com"]
[Source "ChessBase"]
[SourceQuality "1"]
[TimeControl "40/5400+30:1800+30"]

1. d4 {[%emt 0:00:06]} f5 {[%emt 0:00:06]} 2. Nf3 {[%emt 0:01:01]} Nf6 {[%emt 0:00:13]} 3. Bf4 {[%emt 0:01:34]} g6 {[%emt 0:00:17]} 4. e3 {[%emt 0:01:22]} Bg7 {[%emt 0:01:28]} 5. c3 {[%emt 0:00:37]} O-O {[%emt 0:02:55]} 6. Nbd2 {[%emt 0:02:08]} h6 {[%emt 0:01:59]} 7. h4 {[%emt 0:06:21]} d6 {[%emt 0:03:35]} 8. Be2 {[%emt 0:02:35]} Qe8 {[%emt 0:04:47]} 9. Nh2 {[%emt 0:04:23]} e5 {[%emt 0:06:27]} 10. Bg3 {[%emt 0:09:51]} Nc6 {[%emt 0:06:30]} 11. dxe5 {[%emt 0:08:09]} dxe5 {[%emt 0:02:24]} 12. Qb3+ {[%emt 0:13:45]} Kh8 {[%emt 0:03:27]} 13. f3 {[%emt 0:02:44]} Rb8 {[%emt 0:06:14]} 14. O-O-O {[%emt 0:02:50]} Be6 {[%emt 0:01:06]} 15. Qc2 {[%emt 0:01:34]} a5 {[%emt 0:23:33]} 16. a4 {[%emt 0:02:39]} Bd7 {[%emt 0:13:36]} 17. Bf2 {[%emt 0:03:20]} Ne7 {[%emt 0:00:36]} 18. b3 {[%emt 0:00:43]} b5 {[%emt 0:00:23]} 19. axb5 {[%emt 0:02:46]} Bxb5 {[%emt 0:00:02]} 20. Bxb5 {[%emt 0:04:16]} Qxb5 {[%emt 0:00:03]} 21. g4 {[%emt 0:01:38]} fxg4 {[%emt 0:04:09]} 22. fxg4 {[%emt 0:00:27]} Nd7 {[%emt 0:00:49]} 23. Ne4 {[%emt 0:04:20]} Nc5 {[%emt 0:00:51]} 24. Nxc5 {[%emt 0:04:51]} Qxc5 {[%emt 0:00:01]} 25. Kb2 {[%emt 0:03:40]} e4 {[%emt 0:02:09]} 26. Ra1 {[%emt 0:02:54]} Bxc3+ {[%emt 0:00:52]} 27. Qxc3+ {[%emt 0:01:47]} Qxc3+ {[%emt 0:00:02]} 28. Kxc3 {[%emt 0:00:10]} Rxf2 {[%emt 0:00:04]} 29. Rxa5 {[%emt 0:00:24]} Re2 {[%emt 0:01:24]} 30. Nf1 {[%emt 0:01:20]} Nc6 {[%emt 0:04:22]} 31. Rc5 {[%emt 0:01:30]} Nb4 {[%emt 0:04:45]} 32. Kd4 {[%emt 0:02:02]} Nc2+ {[%emt 0:02:30]} 33. Kxe4 {[%emt 0:01:24]} Rxb3 {[%emt 0:00:02]} 34. Rh2 {[%emt 0:01:02]} Rxh2 {[%emt 0:00:43]} 35. Nxh2 {[%emt 0:00:40]} Rxe3+ {[%emt 0:00:09]} 36. Kf4 {[%emt 0:00:36]} Re2 {[%emt 0:00:50]} 37. Nf3 {[%emt 0:00:34]} Nb4 {[%emt 0:00:25]} 38. Rc4 {[%emt 0:01:22]} Nd5+ {[%emt 0:01:21]} 39. Kg3 {[%emt 0:00:10]} Rg2+ {[%emt 0:04:04]} 40. Kh3 {[%emt 0:01:12]} Re2 {[%emt 0:00:32]} 41. Rc5 {[%emt 0:31:15]} Nf4+ {[%emt 0:02:19]} 42. Kg3 {[%emt 0:00:00]} Ne6 {[%emt 0:00:01]} 43. Rc6 {[%emt 0:00:00]} Kg7 {[%emt 0:00:29]} 44. Ng1 {[%emt 0:00:00]} Re4 {[%emt 0:01:22]} 45. Kf3 {[%emt 0:00:00]} Re1 {[%emt 0:01:18]} 46. Kf2 {[%emt 0:00:00]} Re4 {[%emt 0:00:53]} 47. Kf3 {[%emt 0:00:00]} Re5 {[%emt 0:00:38]} 48. Ne2 {[%emt 0:00:00]} Rxe2 {[%emt 0:00:05]} 0-1

[Event "DVM U20w 2021"]
[Site "Kiel"]
[Date "2022.07.23"]
[Round "1"]
[White "Margaryan, Susanna"]
[Black "Sereda, Yaroslava"]
[Result "0-1"]
[ECO "D36"]
[WhiteElo "1436"]
[BlackElo "1781"]
[Annotator "NA RC COMBH"]
[PlyCount "94"]
[EventDate "2022.07.23"]
[EventType "team-tourn"]
[EventRounds "7"]
[EventCountry "GER"]
[SourceTitle "playchess.com"]
[Source "ChessBase"]
[SourceQuality "1"]
[TimeControl "40/5400+30:1800+30"]

1. d4 {[%emt 0:00:05]} d5 {[%emt 0:00:11]} 2. c4 {[%emt 0:00:10]} e6 {[%emt 0:00:08]} 3. cxd5 {[%emt 0:00:10]} exd5 {[%emt 0:00:11]} 4. Nc3 {[%emt 0:00:27]} Nf6 {[%emt 0:00:20]} 5. Bg5 {[%emt 0:00:17]} Be7 {[%emt 0:00:22]} 6. Nf3 {[%emt 0:00:28]} O-O {[%emt 0:00:48]} 7. e3 {[%emt 0:00:19]} Nbd7 {[%emt 0:04:02]} 8. Qc2 {[%emt 0:02:14]} c6 {[%emt 0:03:42]} 9. Bd3 {[%emt 0:01:37]} Re8 {[%emt 0:02:13]} 10. O-O {[%emt 0:01:17]} Ne4 {[%emt 0:25:53]} 11. Bf4 {[%emt 0:02:58]} Nef6 {[%emt 0:07:28]} 12. Rab1 {[%emt 0:01:28]} Nf8 {[%emt 0:02:44]} 13. b4 {[%emt 0:05:24]} a6 {[%emt 0:01:27]} 14. a4 {[%emt 0:00:54]} g6 {[%emt 0:04:08]} 15. b5 {[%emt 0:02:43]} axb5 {[%emt 0:01:19]} 16. axb5 {[%emt 0:00:19]} Ne6 {[%emt 0:01:24]} 17. Bg3 {[%emt 0:01:39]} c5 {[%emt 0:03:07]} 18. dxc5 {[%emt 0:04:44]} Nxc5 {[%emt 0:01:04]} 19. Nd4 {[%emt 0:01:38]} Nxd3 {[%emt 0:03:04]} 20. Qxd3 {[%emt 0:00:13]} Ra3 {[%emt 0:01:44]} 21. Ra1 {[%emt 0:03:49]} Qa5 {[%emt 0:08:30]} 22. Rxa3 {[%emt 0:09:13]} Qxa3 {[%emt 0:01:38]} 23. Rd1 {[%emt 0:11:54]} Bb4 {[%emt 0:06:23]} 24. Nce2 {[%emt 0:03:26]} Qxd3 {[%emt 0:02:39]} 25. Rxd3 {[%emt 0:00:07]} Bd7 {[%emt 0:02:37]} 26. Bh4 {[%emt 0:04:13]} Ne4 {[%emt 0:03:29]} 27. Rb3 {[%emt 0:16:15]} Ra8 {[%emt 0:02:51]} 28. h3 {[%emt 0:02:22]} Ra1+ {[%emt 0:02:30]} 29. Kh2 {[%emt 0:00:19]} Bd6+ {[%emt 0:00:56]} 30. Bg3 {[%emt 0:00:29]} Bxg3+ {[%emt 0:02:01]} 31. fxg3 {[%emt 0:00:32]} Nf2 {[%emt 0:00:59]} 32. g4 {[%emt 0:00:50]} Rh1+ {[%emt 0:00:21]} 33. Kg3 {[%emt 0:00:24]} Ne4+ {[%emt 0:00:17]} 34. Kf4 {[%emt 0:01:10]} f6 {[%emt 0:05:11]} 35. Ng3 {[%emt 0:03:08]} g5+ {[%emt 0:00:00]} 36. Kf3 {[%emt 0:00:12]} Nd2+ {[%emt 0:00:00]} 37. Kf2 {[%emt 0:00:25]} Nxb3 {[%emt 0:00:58]} 38. Nxh1 {[%emt 0:00:13]} Nxd4 {[%emt 0:00:19]} 39. exd4 {[%emt 0:00:06]} Bxb5 {[%emt 0:00:26]} 40. Ng3 {[%emt 0:00:18]} Bc4 {[%emt 0:01:26]} 41. Ke3 {[%emt 0:30:38]} b5 {[%emt 0:31:00]} 42. Kd2 {[%emt 0:00:05]} Kf7 {[%emt 0:00:00]} 43. Kc3 {[%emt 0:00:00]} Ke6 {[%emt 0:00:00]} 44. Kb4 {[%emt 0:00:00]} Bd3 {[%emt 0:00:00]} 45. Kc3 {[%emt 0:00:00]} Be4 {[%emt 0:00:00]} 46. Kb4 {[%emt 0:00:00]} Bxg2 {[%emt 0:00:00]} 47. Kxb5 {[%emt 0:00:00]} Bxh3 {[%emt 0:00:00]} 0-1

[Event "DVM U20w 2021"]
[Site "Kiel"]
[Date "2022.07.23"]
[Round "1"]
[White "Schwarzfischer, Julia"]
[Black "Albayrak, Nese Pinar"]
[Result "0-1"]
[ECO "C54"]
[WhiteElo "1314"]
[BlackElo "1651"]
[Annotator "NA RC COMBH"]
[PlyCount "90"]
[EventDate "2022.07.23"]
[EventType "team-tourn"]
[EventRounds "7"]
[EventCountry "GER"]
[SourceTitle "playchess.com"]
[Source "ChessBase"]
[SourceQuality "1"]
[TimeControl "40/5400+30:1800+30"]

1. e4 {[%emt 0:00:01]} e5 {[%emt 0:00:05]} 2. Nf3 {[%emt 0:00:05]} Nc6 {[%emt 0:00:05]} 3. Bc4 {[%emt 0:00:08]} Nf6 {[%emt 0:00:05]} 4. d3 {[%emt 0:00:16]} Bc5 {[%emt 0:00:16]} 5. c3 {[%emt 0:00:09]} a6 {[%emt 0:00:07]} 6. Bb3 {[%emt 0:00:06]} Ba7 {[%emt 0:00:59]} 7. Nbd2 {[%emt 0:00:24]} d6 {[%emt 0:00:13]} 8. Nf1 {[%emt 0:00:16]} h6 {[%emt 0:00:24]} 9. a3 {[%emt 0:01:10]} O-O {[%emt 0:01:54]} 10. Ng3 {[%emt 0:00:15]} Be6 {[%emt 0:00:39]} 11. Bc2 {[%emt 0:00:28]} Re8 {[%emt 0:02:13]} 12. O-O {[%emt 0:00:16]} d5 {[%emt 0:07:16]} 13. d4 {[%emt 0:02:32]} Bg4 {[%emt 0:07:27]} 14. Qd3 {[%emt 0:13:39]} exd4 {[%emt 0:28:26]} 15. exd5 {[%emt 0:00:53]} Qxd5 {[%emt 0:08:03]} 16. c4 {[%emt 0:00:53]} Qd6 {[%emt 0:03:18]} 17. b4 {[%emt 0:03:22]} Bxf3 {[%emt 0:03:33]} 18. Qxf3 {[%emt 0:00:19]} Ne5 {[%emt 0:01:38]} 19. Qb3 {[%emt 0:02:56]} Qe6 {[%emt 0:12:18]} 20. Bd3 {[%emt 0:03:17]} b5 {[%emt 0:02:12]} 21. Qc2 {[%emt 0:01:43]} Nxd3 {[%emt 0:02:46]} 22. Qxd3 {[%emt 0:03:50]} bxc4 {[%emt 0:07:09]} 23. Qf3 {[%emt 0:00:37]} Qd5 {[%emt 0:03:36]} 24. Qf4 {[%emt 0:00:58]} Qe5 {[%emt 0:04:22]} 25. Qf3 {[%emt 0:01:49]} Qd5 {[%emt 0:00:30]} 26. Qf4 {[%emt 0:00:59]} Qe5 {[%emt 0:00:06]} 27. Qh4 {[%emt 0:02:57]} d3 {[%emt 0:03:01]} 28. Bf4 {[%emt 0:01:11]} Bxf2+ {[%emt 0:01:12]} 29. Kh1 {[%emt 0:01:34]} Bxg3 {[%emt 0:00:32]} 30. Qxg3 {[%emt 0:01:01]} Qh5 {[%emt 0:00:29]} 31. Bxc7 {[%emt 0:00:35]} Qg4 {[%emt 0:00:34]} 32. Qd6 {[%emt 0:00:52]} Re2 {[%emt 0:00:19]} 33. Rg1 {[%emt 0:01:29]} Ne4 {[%emt 0:00:28]} 34. Qb6 {[%emt 0:01:16]} Nf2+ {[%emt 0:00:06]} 35. Qxf2 {[%emt 0:00:05]} Rxf2 {[%emt 0:00:04]} 36. Bg3 {[%emt 0:00:21]} Re2 {[%emt 0:00:22]} 37. Rgf1 {[%emt 0:00:30]} Rae8 {[%emt 0:00:37]} 38. Rf4 {[%emt 0:00:21]} Re1+ {[%emt 0:00:09]} 39. Rf1 {[%emt 0:00:43]} Rxa1 {[%emt 0:00:10]} 40. Rxa1 {[%emt 0:00:11]} c3 {[%emt 0:00:29]} 41. Rc1 {[%emt 0:30:38]} d2 {[%emt 0:30:09]} 42. Rg1 {[%emt 0:00:12]} d1=Q {[%emt 0:00:21]} 43. a4 {[%emt 0:00:21]} Qxg3 {[%emt 0:00:20]} 44. a5 {[%emt 0:00:29]} Qxg1+ {[%emt 0:00:07]} 45. Kxg1 {[%emt 0:00:05]} Re1# {[%emt 0:00:06]} 0-1

[Event "DVM U20w 2021"]
[Site "Kiel"]
[Date "2022.07.23"]
[Round "1"]
[White "Hoffmann, Sophia"]
[Black "Wilmink, Anna"]
[Result "0-1"]
[ECO "D00"]
[WhiteElo "1214"]
[BlackElo "1692"]
[Annotator "NA RC COMBH"]
[PlyCount "62"]
[EventDate "2022.07.23"]
[EventType "team-tourn"]
[EventRounds "7"]
[EventCountry "GER"]
[SourceTitle "playchess.com"]
[Source "ChessBase"]
[SourceQuality "1"]
[TimeControl "40/5400+30:1800+30"]

1. d4 {[%emt 0:00:03]} Nf6 {[%emt 0:00:12]} 2. Bf4 {[%emt 0:00:10]} d5 {[%emt 0:00:27]} 3. e3 {[%emt 0:00:27]} c5 {[%emt 0:00:13]} 4. c3 {[%emt 0:00:15]} Nc6 {[%emt 0:00:32]} 5. Nd2 {[%emt 0:00:24]} Bf5 {[%emt 0:02:50]} 6. Ngf3 {[%emt 0:00:47]} e6 {[%emt 0:00:48]} 7. Be2 {[%emt 0:02:00]} Be7 {[%emt 0:01:33]} 8. h3 {[%emt 0:00:53]} Ne4 {[%emt 0:03:00]} 9. Nxe4 {[%emt 0:01:45]} Bxe4 {[%emt 0:00:59]} 10. Bd3 {[%emt 0:02:17]} Bxd3 {[%emt 0:02:24]} 11. Qxd3 {[%emt 0:00:08]} Bf6 {[%emt 0:03:47]} 12. O-O {[%emt 0:01:48]} O-O {[%emt 0:01:25]} 13. Rfe1 {[%emt 0:01:43]} Re8 {[%emt 0:02:35]} 14. dxc5 {[%emt 0:02:08]} e5 {[%emt 0:01:32]} 15. Qb5 {[%emt 0:06:20]} exf4 {[%emt 0:03:15]} 16. Qxb7 {[%emt 0:01:24]} Na5 {[%emt 0:04:34]} 17. Qa6 {[%emt 0:02:55]} fxe3 {[%emt 0:03:57]} 18. Rxe3 {[%emt 0:04:34]} Rxe3 {[%emt 0:01:25]} 19. fxe3 {[%emt 0:00:10]} Nc4 {[%emt 0:01:26]} 20. Kf2 {[%emt 0:05:36]} Qe7 {[%emt 0:03:49]} 21. Re1 {[%emt 0:04:11]} Qxc5 {[%emt 0:03:34]} 22. Nd4 {[%emt 0:07:21]} Qb6 {[%emt 0:06:59]} 23. Qa4 {[%emt 0:05:19]} Qxb2+ {[%emt 0:03:43]} 24. Ne2 {[%emt 0:02:24]} Qd2 {[%emt 0:01:39]} 25. g3 {[%emt 0:06:26]} Qxe3+ {[%emt 0:01:37]} 26. Kg2 {[%emt 0:01:39]} Bxc3 {[%emt 0:03:39]} 27. Qc6 {[%emt 0:04:23]} Rd8 {[%emt 0:02:14]} 28. Qc7 {[%emt 0:02:14]} Re8 {[%emt 0:00:59]} 29. Rb1 {[%emt 0:10:34]} Qxe2+ {[%emt 0:00:29]} 30. Kg1 {[%emt 0:00:26]} Bd4+ {[%emt 0:00:19]} 31. Kh1 {[%emt 0:00:13]} Qf3+ {[%emt 0:00:15]} 0-1

[Event "DVM U20w 2021"]
[Site "Kiel"]
[Date "2022.07.23"]
[Round "1"]
[White "Weiß, Sara"]
[Black "Albayrak, Melissa"]
[Result "0-1"]
[ECO "C47"]
[WhiteElo "714"]
[BlackElo "1366"]
[Annotator "NA RC COMBH"]
[PlyCount "40"]
[EventDate "2022.07.23"]
[EventType "team-tourn"]
[EventRounds "7"]
[EventCountry "GER"]
[SourceTitle "playchess.com"]
[Source "ChessBase"]
[SourceQuality "1"]
[TimeControl "40/5400+30:1800+30"]

1. Nf3 {[%emt 0:00:06]} Nc6 {[%emt 0:00:09]} 2. g3 {[%emt 0:00:24]} Nf6 {[%emt 0:00:23]} 3. Bg2 {[%emt 0:00:13]} e5 {[%emt 0:00:10]} 4. e4 {[%emt 0:00:23]} Bc5 {[%emt 0:00:34]} 5. Nc3 {[%emt 0:00:34]} O-O {[%emt 0:00:26]} 6. O-O {[%emt 0:01:14]} Re8 {[%emt 0:00:00]} 7. d3 {[%emt 0:01:13]} h6 {[%emt 0:00:48]} 8. Be3 {[%emt 0:04:02]} Bb6 {[%emt 0:01:19]} 9. d4 {[%emt 0:02:41]} exd4 {[%emt 0:02:15]} 10. Nxd4 {[%emt 0:00:14]} d6 {[%emt 0:01:04]} 11. f4 {[%emt 0:00:43]} Bg4 {[%emt 0:01:38]} 12. Bf3 {[%emt 0:00:17]} Bxf3 {[%emt 0:00:29]} 13. Qxf3 {[%emt 0:00:14]} Nxd4 {[%emt 0:00:08]} 14. Qd1 {[%emt 0:00:27]} Nc6 {[%emt 0:00:18]} 15. Re1 {[%emt 1:25:15]} Nxe4 {[%emt 0:04:35]} 16. Ne2 {[%emt 0:00:00]} Bxe3+ {[%emt 0:00:11]} 17. Kg2 {[%emt 0:00:00]} Qe7 {[%emt 0:02:48]} 18. g4 {[%emt 0:00:00]} Nf2 {[%emt 0:04:52]} 19. Qb1 {[%emt 0:00:00]} Qe4+ {[%emt 0:01:20]} 20. Kg1 {[%emt 0:00:00]} Qh1# {[%emt 0:00:30]} 0-1